Cogmind - Beta 14 @@@ ROGUE MODE // 2024.09.23 @ 01:52:13 Player: Rq Result: Destroyed by Y-45 Defender with Beam Rifle Performance ------------- Evolutions (2) 1000 Regions Visited (7) 1400 Robots Destroyed (106) 530 Value Destroyed (3474) 3474 Prototype IDs (1) 20 Alien Tech Used (0) 0 Bonus (645) 645 TOTAL SCORE: 7069 Bonus ------- High Alert Combat Kills 351 Follower Combat Kills 94 Entered Garrisons 200 Cogmind --------- Core Integrity 0/550 Matter 165/300 Energy 151/160 System Corruption 0% Temperature Cool (48) Movement Treading (240) Ox1 Location -8/Materials Parts ------- > --- POWER (1) -------- Light Nuclear Core > --- PROPULSION (3) --- Light Treads Light Treads Light Treads > --- UTILITY (4) ------ Huge Storage Unit Improved Sensor Array Improved Signal Interpreter Improved Targeting Computer > --- WEAPON (3) ------- Hypervelocity Gauss Rifle Hypervelocity Gauss Rifle Hypervelocity Gauss Rifle > --- INVENTORY (25) --- Improved Ion Engine Improved Ion Engine Light Treads Wheel Improved Heat Sink Advanced Heat Sink Disposable Heat Sink Large Storage Unit Large Matter Pod (150) Improved Signal Interpreter Core Shielding Hardened Light Armor Plating Layered Light Armor Plating Layered Light Armor Plating Reactive Plating EM Disruption Field EM Disruption Field Tractor Beam Field Recycling Unit (0) Minigun Rocket Launcher Rocket Launcher Mining Laser Mace Katana Peak State ------------ > --- POWER ------------ Light Nuclear Core > --- PROPULSION ------- Light Treads Advanced Treads Wheel > --- UTILITY ---------- Huge Storage Unit Improved Targeting Computer Layered Light Armor Plating Layered Light Armor Plating > --- WEAPON ----------- Hypervelocity Gauss Rifle Hypervelocity Gauss Rifle Hypervelocity Gauss Rifle > --- INVENTORY -------- Improved Ion Engine Improved Ion Engine Light Nuclear Core Improved Heat Sink Improved Heat Sink Disposable Heat Sink Large Storage Unit Large Matter Pod Experimental Sensor Array Improved Signal Interpreter Improved Terrain Scanner Layered Light Armor Plating EM Disruption Field EM Disruption Field Tractor Beam Field Recycling Unit Light Assault Rifle Rocket Launcher Rocket Launcher Mining Laser Mace Blade Saw [Rating: 40] Favorites ----------- Power Ion Engine Engine Ion Engine Power Core Nuclear Core Propulsion Improved Treads Treads Improved Treads Leg Aluminum Leg Wheel Wheel Utility Huge Storage Unit Device Improved Terrain Scanner Storage Huge Storage Unit Processor Improved Targeting Computer Protection Layered Light Armor Plating Weapon Autogun Energy Gun Particle Gun Ballistic Gun Autogun Launcher Mini Grenade Launcher Special Weapon Mining Laser Impact Weapon Mace Slashing Weapon Blade Saw Build | -11 -10 -10 -10 -9 -8 -8 -8 ------- Run | Yrd Mat Min Exi Min Mat Gar Mat Slots Evolved 4 | . . . . . 4 . . Power . | . . . . . . . . Propulsion 1 | . . . . . 1 . . Utility 2 | . . . . . 2 . . Weapon 1 | . . . . . 1 . . Parts Attached 90 | 2 24 1 2 5 18 26 12 Power 9 | . 2 . . 1 3 2 1 Engine 5 | . 2 . . 1 1 1 . Core 4 | . . . . . 2 1 1 Reactor . | . . . . . . . . Propulsion 21 | . 5 . . . 4 7 5 Treads 20 | . 5 . . . 4 7 4 Leg . | . . . . . . . . Wheel 1 | . . . . . . . 1 Hover . | . . . . . . . . Flight . | . . . . . . . . Utility 24 | 1 4 1 2 1 5 6 4 Device 9 | 1 1 1 2 . . 2 2 Storage 4 | . 3 . . 1 . . . Processor 2 | . . . . . 1 . 1 Hackware . | . . . . . . . . Protection 9 | . . . . . 4 4 1 Artifact . | . . . . . . . . Weapon 36 | 1 13 . . 3 6 11 2 Energy Gun 6 | . 2 . . . . 4 . Energy Cannon . | . . . . . . . . Ballistic Gun 20 | 1 7 . . 2 4 5 1 Ballistic Cannon . | . . . . . . . . Launcher 6 | . 2 . . 1 2 1 . Special Weapon 2 | . 2 . . . . . . Impact Weapon 1 | . . . . . . . 1 Slashing Weapon 1 | . . . . . . 1 . Piercing Weapon . | . . . . . . . . Special Melee Weapon . | . . . . . . . . Unidentified Prototypes 1 | . . . 1 . . . . Parts Lost 33 | . 4 . . . 13 14 2 Power 4 | . 1 . . . 1 2 . Propulsion 11 | . 1 . . . 3 6 1 Utility 7 | . 1 . . . 4 1 1 Weapon 11 | . 1 . . . 5 5 . Highest Loss Streak 5 | . 2 . . . 5 3 1 To Critical Strikes . | . . . . . . . . Average Slot Usage (%) 94 | . 96 100 100 100 87 87 95 Engine 8 | . 14 14 14 14 1 . . Core 3 | . . . . . 6 8 9 Treads 25 | . 27 28 28 28 24 23 15 Device 10 | . 10 14 14 14 9 7 5 Storage 11 | . 14 14 14 14 9 9 9 Processor 3 | . . . . . 4 9 14 Protection 2 | . . . . . 8 5 6 Energy Gun 2 | . 5 . . . . 7 . Ballistic Gun 21 | . 22 28 28 27 16 12 25 Launcher 1 | . . . . . 6 4 . Peak Build Rating 40 | 7 13 16 21 18 27 38 40 Average Rating 19 | 6 8 13 16 16 22 25 35 On Entrance 17 | 6 7 13 16 16 18 22 38 Naked Turns . | . . . . . . . . Heaviest Build 111 | 12 32 32 32 94 107 111 111 Greatest Support 69 | 20 46 46 46 46 69 65 60 Greatest Overweight (x) 11 | . . . . 2 2 4 11 Average Overweight (x) 1 | . . . . . 1 1 7 Largest Inventory Capacity 25 | 8 15 15 15 25 25 25 25 Average Capacity 20 | 8 12 15 15 24 25 25 25 Most Carried 25 | 6 15 15 15 25 24 25 25 Average Carried 17 | 5 8 14 14 17 20 22 23 Final Capacity 25 | 8 15 15 15 25 25 25 25 Final Carried 25 | 6 14 15 15 25 21 22 25 Class Distribution -------------------- 61% | Mutant 10% | Scavenger-Gunner 8% | Scavenger-Mutant 7% | Gunner 7% | Tank 4% | Scavenger-Skirmisher Dominant Class ---------------- Mutant | -10/Materials Mutant | -10/Mines Mutant | -10/Exiles Mutant | -9/Mines Gunner | -8/Materials Scavenger-Gunner | -8/Garrison Scavenger-Skirmisher | -8/Materials Resources | -11 -10 -10 -10 -9 -8 -8 -8 ----------- Run | Yrd Mat Min Exi Min Mat Gar Mat Matter Collected 2845 | 260 678 13 25 180 723 531 435 Remotely . | . . . . . . . . Salvage Created 4034 | 121 1000 13 . 214 1164 798 724 Parts 185 | 4 38 4 . 10 48 38 43 Haulers Intercepted 4 | . 2 . . . 1 . 1 Recyclers Shooed 9 | 2 5 . . . 1 . 1 Parts Field Recycled . | . . . . . . . . Retrieved Matter . | . . . . . . . . Parts Self-Destructed . | . . . . . . . . Prevented . | . . . . . . . . Kills | -11 -10 -10 -10 -9 -8 -8 -8 ------- Run | Yrd Mat Min Exi Min Mat Gar Mat Combat Hostiles Destroyed 82 | . 19 . . 5 25 27 6 Guns 59 | . 16 . . 2 15 20 6 AOE 23 | . 3 . . 3 10 7 . Classes Destroyed 13 | 2 4 . . 2 3 2 . Worker 5 | . . . . 1 2 . 2 Builder 2 | . 1 . . . 1 . . Tunneler 2 | 1 . 1 . . . . . Hauler 4 | . 2 . . . 1 . 1 Recycler 7 | 1 2 . . 1 1 . 2 Operator 1 | . 1 . . . . . . Watcher 3 | . . . . . 1 . 2 Swarmer 9 | . . . . 3 . 6 . Cutter 3 | . . . . . . 3 . Grunt 59 | . 19 . . 2 22 12 4 Duelist 2 | . . . . . . 1 1 Sentry 8 | . . . . . 2 5 1 Hunter 1 | . . . . . 1 . . Best Kill Streak 12 | 2 7 1 . 3 12 6 3 Combat Bots Only 8 | . 6 . . 3 8 6 2 Max Kills in Single Turn 3 | 1 3 1 . 1 3 3 2 Gunslinging . | . . . . . . . . Exploded 3 | . 2 . . 1 2 3 . Melee . | . . . . . . . . Uniques/NPCs Destroyed . | . . . . . . . . Combat | -11 -10 -10 -10 -9 -8 -8 -8 -------- Run | Yrd Mat Min Exi Min Mat Gar Mat Hostile Shots Fired 420 | . 81 . . 24 127 142 46 Missed 118 | . 18 . . 10 23 54 13 Damage Taken 5185 | . 831 . . 140 1923 1673 618 Core 678 | . 91 . . 30 262 253 42 Absorbed by Shields . | . . . . . . . . Regen/Repaired (Parts) 11 | . . . . . . . 11 Core Remaining (%) 75 | 100 . . . 51 . . . Volleys Fired 299 | 10 85 1 . 12 78 76 37 Largest 3 | 2 2 2 . 2 3 3 3 Hottest 150 | 40 120 46 . 46 76 150 99 Shots Fired 567 | 20 156 2 . 21 138 138 92 Gun 524 | 20 146 2 . 18 122 124 92 Cannon . | . . . . . . . . Launcher 39 | . 6 . . 3 16 14 . Special 4 | . 4 . . . . . . Kinetic 441 | 20 134 2 . 18 122 53 92 Thermal 87 | . 16 . . . . 71 . Explosive 39 | . 6 . . 3 16 14 . Electromagnetic . | . . . . . . . . Robot Hit Streak 16 | 4 16 4 . 4 15 11 14 Robot Miss Streak 5 | 3 5 . . 3 2 4 2 Penetration Max 1 | . . . . . . . 1 Secondary Targets 8 | . . . . . 2 4 2 Max Gunslinging Chain 1 | . . . . . 1 1 1 Shots Hit Robots 398 | 12 103 2 . 11 104 92 74 Core Hits 219 | 4 47 1 . 8 67 59 33 Critical Kills 11 | . . . . . 1 . 10 Critical Parts Destroyed 19 | . 2 . . . . . 17 Critical Strikes 36 | . 2 . . . 1 4 29 Burn 4 | . . . . . . 4 . Destroy 32 | . 2 . . . 1 . 29 Melee Attacks 5 | . . . . . . 3 2 Impact 2 | . . . . . . . 2 Slashing 3 | . . . . . . 3 . Piercing . | . . . . . . . . Sneak Attacks . | . . . . . . . . Combat Hostiles . | . . . . . . . . Follow-up Attacks . | . . . . . . . . Damage Inflicted 8330 | 124 1667 29 . 400 3333 2227 550 Guns 5023 | 124 1336 29 . 157 1414 1413 550 Cannons . | . . . . . . . . Explosions 3307 | . 331 . . 243 1919 814 . Melee . | . . . . . . . . Ramming . | . . . . . . . . Kinetic 3976 | 124 1216 29 . 157 1414 486 550 Thermal 1047 | . 120 . . . . 927 . Explosive 3307 | . 331 . . 243 1919 814 . Electromagnetic . | . . . . . . . . Impact . | . . . . . . . . Slashing . | . . . . . . . . Piercing . | . . . . . . . . Highest Corruption . | . . . . . . . . Average Corruption . | . . . . . . . . Corruption Purged . | . . . . . . . . Corruption Blocked . | . . . . . . . . Overload Shots . | . . . . . . . . Overflow Damage 80 | . . . . 13 43 24 . Projectiles . | . . . . . . . . Explosions 80 | . . . . 13 43 24 . Melee . | . . . . . . . . Knockbacks . | . . . . . . . . Impact . | . . . . . . . . Kinetic . | . . . . . . . . Secondary . | . . . . . . . . Self-Inflicted Damage 480 | . 41 . . . 253 186 . Shots 16 | . 2 . . . 7 7 . Rammed . | . . . . . . . . Targets Rammed 1 | . . . . . 1 . . Kicked . | . . . . . . . . Crushed 1 | . . . . . 1 . . Highest Temperature 326 | . 221 6 . 43 195 201 326 Average Temperature 56 | . 45 4 . 19 53 51 84 Received Heat Transfer 2313 | . 483 . . 48 981 567 234 Effects 6 | . 3 . . . . . 3 Energy Bleed 1 | . . . . . . . 1 Interference 5 | . 3 . . . . . 2 Siege Activations . | . . . . . . . . Robots Corrupted . | . . . . . . . . Combat Hostiles . | . . . . . . . . Parts Fried . | . . . . . . . . Impact Corruptions . | . . . . . . . . Robots Melted . | . . . . . . . . Combat Hostiles . | . . . . . . . . Parts Melted 7 | . . . . . . 7 . Heat Transferred 2516 | . 296 . . . . 2220 . Parts Sabotaged . | . . . . . . . . Parts Stolen . | . . . . . . . . Parts Stripped . | . . . . . . . . Power Chain Reactions . | . . . . . . . . Alert | -11 -10 -10 -10 -9 -8 -8 -8 ------- Run | Yrd Mat Min Exi Min Mat Gar Mat Peak Influence 1099 | 10 205 66 . 150 550 1099 535 Initial 535 | . 6 66 . . 16 279 535 Average 251 | 4 97 24 . 45 247 691 277 Maximum Alert Level 3 | . 1 . . . 2 3 2 Low Security (%) 59 | 100 94 100 . 100 36 . 14 Level 1 13 | . 5 . . . 29 8 76 Level 2 16 | . . . . . 34 49 9 Level 3 10 | . . . . . . 42 . Level 4 . | . . . . . . . . Level 5 . | . . . . . . . . High Security . | . . . . . . . . Max Security . | . . . . . . . . Squads Dispatched 10 | . 4 . . . 5 . 1 Investigation 4 | . 2 . . . 1 . 1 Extermination . | . . . . . . . . Reinforcement 5 | . 2 . . . 3 . . Assault . | . . . . . . . . Garrison 1 | . . . . . 1 . . Intercept . | . . . . . . . . Searches Triggered . | . . . . . . . . Construction Impeded 2 | . . . . . 2 . . Haulers Reinforced . | . . . . . . . . Active Scanning Responses . | . . . . . . . . Cargo Convoy Interrupts . | . . . . . . . . Stealth | -11 -10 -10 -10 -9 -8 -8 -8 --------- Run | Yrd Mat Min Exi Min Mat Gar Mat Distress Signals 5 | . . . . . 1 . 4 Communications Jammed . | . . . . . . . . Distress Signals . | . . . . . . . . Times Spotted 118 | . 32 . . 9 32 30 15 Peak Tracking Total 8 | . 5 . . 4 8 6 4 Tactical Retreats 9 | . 3 . . . 1 3 2 Traps | -11 -10 -10 -10 -9 -8 -8 -8 ------- Run | Yrd Mat Min Exi Min Mat Gar Mat Traps Triggered 11 | . . . . . . 11 . Indirectly . | . . . . . . . . Trap Hack Attempts . | . . . . . . . . Triggered . | . . . . . . . . Disarmed . | . . . . . . . . Reprogrammed . | . . . . . . . . Reused . | . . . . . . . . Traps Extracted . | . . . . . . . . Installed . | . . . . . . . . Triggered . | . . . . . . . . Machines | -11 -10 -10 -10 -9 -8 -8 -8 ---------- Run | Yrd Mat Min Exi Min Mat Gar Mat Machines Disabled 9 | . 1 . . 1 3 4 . Max in Single Turn 2 | . 1 . . . 2 2 . Garrison Access 1 | . . . . . . . 1 Machines Repaired . | . . . . . . . . Machines Dismantled . | . . . . . . . . Machines Sabotaged . | . . . . . . . . Overloaded Fab Kills . | . . . . . . . . Hacking | -11 -10 -10 -10 -9 -8 -8 -8 --------- Run | Yrd Mat Min Exi Min Mat Gar Mat Machines Accessed 12 | . 6 . . . 2 1 3 Terminals 7 | . 5 . . . . 1 1 Fabricators . | . . . . . . . . Repair Stations 1 | . . . . . . . 1 Recycling Units 1 | . 1 . . . . . . Scanalyzers 1 | . . . . . 1 . . Garrison Access 2 | . . . . . 1 . 1 Total Hacks 30 | . 14 . . . 7 1 8 Successful 18 | . 7 . . . 4 . 7 Failed 12 | . 7 . . . 3 1 1 Catastrophic 2 | . 1 . . . . . 1 Database Lockouts . | . . . . . . . . Manual 16 | . 11 . . . . . 5 Terminals 18 | . 12 . . . . 1 5 Fabricators . | . . . . . . . . Repair Stations 2 | . . . . . . . 2 Recycling Units 2 | . 2 . . . . . . Scanalyzers 5 | . . . . . 5 . . Garrison Access 3 | . . . . . 2 . 1 Terminal Hacks 8 | . 4 . . . . . 4 Robot Analysis 4 | . 4 . . . . . . Alert Level 2 | . . . . . . . 2 Unreport Threat 2 | . . . . . . . 2 Fabricator Hacks . | . . . . . . . . Repair Station Hacks 2 | . . . . . . . 2 Scan Component 1 | . . . . . . . 1 Repair 1 | . . . . . . . 1 Recycling Unit Hacks . | . . . . . . . . Scanalyzer 3 | . . . . . 3 . . Insert Component 2 | . . . . . 2 . . Analyze 1 | . . . . . 1 . . Garrison Access Hacks 2 | . . . . . 1 . 1 Unlock Access 1 | . . . . . 1 . . Seal Access 1 | . . . . . . . 1 Unauthorized Hacks 3 | . 3 . . . . . . Terminals 1 | . 1 . . . . . . Botnet 1 | . 1 . . . . . . Fabricators . | . . . . . . . . Repair Stations . | . . . . . . . . Recycling Units 2 | . 2 . . . . . . Reject 1 | . 1 . . . . . . Mask 1 | . 1 . . . . . . Scanalyzers . | . . . . . . . . Garrison Access . | . . . . . . . . Data Cores Recovered . | . . . . . . . . Used . | . . . . . . . . Hacking Detections 9 | . 5 . . . 2 1 1 Full Trace Events 4 | . 2 . . . 1 . 1 Feedback Events . | . . . . . . . . Feedback Blocked . | . . . . . . . . Robot Schematics Acquired . | . . . . . . . . Robots Built . | . . . . . . . . Authchips . | . . . . . . . . Time . | . . . . . . . . Total Robot Build Rating . | . . . . . . . . Part Schematics Acquired . | . . . . . . . . Parts Built . | . . . . . . . . Authchips . | . . . . . . . . Time . | . . . . . . . . Total Part Build Rating . | . . . . . . . . Parts Repaired 1 | . . . . . . . 1 Time 136 | . . . . . . . 136 Parts Recycled . | . . . . . . . . Recycled Matter . | . . . . . . . . Retrieved Matter . | . . . . . . . . Retrieved Components . | . . . . . . . . Parts Scanalyzed 1 | . . . . . 1 . . Part Schematics Acquired . | . . . . . . . . Parts Damaged 1 | . . . . . 1 . . Bothacking | -11 -10 -10 -10 -9 -8 -8 -8 ------------ Run | Yrd Mat Min Exi Min Mat Gar Mat Used RIF Installer . | . . . . . . . . Robots Hacked . | . . . . . . . . Non-combat . | . . . . . . . . Combat . | . . . . . . . . Robot Hacks Applied . | . . . . . . . . Relay Couplers Released . | . . . . . . . . Fabnet Peak Effective % . | . . . . . . . . Robots Rewired . | . . . . . . . . Allies Hacked . | . . . . . . . . Hacks Repelled . | . . . . . . . . Allies | -11 -10 -10 -10 -9 -8 -8 -8 -------- Run | Yrd Mat Min Exi Min Mat Gar Mat Total Allies 3 | . . . . 3 . . . Largest Group 3 | . . . . 3 2 . . Highest-Rated Group 40 | . . . . 40 24 . . Highest-Rated Ally 16 | . . . . 16 16 . . Total Orders . | . . . . . . . . Ally Attacks 24 | . . . . 19 5 . . Total Damage 230 | . . . . 193 37 . . Kills 6 | . . . . 6 . . . Allies Corrupted . | . . . . . . . . Allies Melted . | . . . . . . . . Intel | -11 -10 -10 -10 -9 -8 -8 -8 ------- Run | Yrd Mat Min Exi Min Mat Gar Mat Robot Analysis Total 4 | . 4 . . . . . . Derelict Logs Recovered 3 | . . 2 . 1 . . . Drone Launches . | . . . . . . . . Drone Recoveries . | . . . . . . . . Exploration | -11 -10 -10 -10 -9 -8 -8 -8 ------------- Run | Yrd Mat Min Exi Min Mat Gar Mat Turns Passed 9088 | 70 1758 1147 355 1845 975 2076 862 Spaces Moved 3665 | 32 806 680 220 699 294 675 259 Core . | . . . . . . . . Treads 3417 | . 783 680 220 699 294 675 66 Legs 55 | 32 23 . . . . . . Wheels 193 | . . . . . . . 193 Hover . | . . . . . . . . Flight . | . . . . . . . . Fastest Speed 120 | 120 120 160 160 160 240 235 215 Average Speed 206 | 120 158 160 160 238 247 263 244 Slowest Speed 465 | 120 160 160 160 320 320 465 320 Overloaded Moves . | . . . . . . . . Propulsion Burnouts . | . . . . . . . . Robots Hopped . | . . . . . . . . Cave-ins Triggered . | . . . . . . . . Exploration Rate (%) 58 | 4 98 99 58 100 23 62 23 Regions Visited 7 Branch Regions 3 Pre-discovered Areas 1 | . . . . 1 . . . Known Exits Taken 1 | . . . . . 1 . . Unknown Exits Taken 5 | 1 1 1 1 1 . . . Scrap Searched 4 | . . 1 . 3 . . . Spaces Dug 44 | . 9 . . 10 11 12 2 Terrain Destroyed 204 | . 34 . . 28 91 48 3 Melee 2 | . . . . . . . 2 Projectile 2 | . 2 . . . . . . AOE 199 | . 32 . . 28 91 48 . Terrain Rammed . | . . . . . . . . Walls Destroyed . | . . . . . . . . Machines Disabled . | . . . . . . . . Actions | -11 -10 -10 -10 -9 -8 -8 -8 --------- Run | Yrd Mat Min Exi Min Mat Gar Mat Total 4667 | 45 1136 738 223 857 420 839 409 Wait 512 | . 192 54 . 129 19 38 80 Move 3658 | 31 805 679 219 698 293 674 259 Hop . | . . . . . . . . Pick Up 61 | 1 17 2 1 11 10 9 10 Fast Attach 20 | 1 . . . . 1 14 4 Attach 39 | 1 8 . . . 15 10 5 Detach 6 | . 1 . . . . 2 3 Swap 31 | . 16 1 2 5 2 2 3 Drop 29 | 1 12 1 1 2 1 5 6 Fire 299 | 10 85 1 . 12 78 76 37 Melee 5 | . . . . . . 3 2 Ram . | . . . . . . . . Kick . | . . . . . . . . Crush 1 | . . . . . 1 . . Escape Stasis 6 | . . . . . . 6 . Rewire . | . . . . . . . . Trap . | . . . . . . . . Miscellaneous . | . . . . . . . . Route ------- -11/Scrapyard -10/Materials (discovered 5 exits: [*Mat x3] / [*Min x2]) -10/Mines (discovered 3 exits: [*Mat x2] / [*Exi]) -10/Exiles (discovered 2 exits: [*Min x2]) -9/Mines (discovered 2 exits: *Mat x2) -8/Materials (discovered 2 exits: *Sto / Gar) -8/Garrison (discovered 2 exits: *Mat x2) -8/Materials History --------- Turn | Location | Event 3 | -11/Scrapyard | Discovered new exit (range 2) 71 | -11/Scrapyard | Entered Materials 308 | -10/Materials | Build established: Mutant 392 | -10/Materials | Discovered new exit (range 12) 594 | -10/Materials | Discovered new exit (range 15) 667 | -10/Materials | Discovered new exit (range 4) 966 | -10/Materials | Discovered new exit (range 14) 1244 | -10/Materials | Discovered new exit (range 4) 1829 | -10/Materials | Entered Mines 1857 | -10/Mines | Received a Rocket Launcher from a helpful Derelict 1891 | -10/Mines | Met a Derelict bent on vengeance 1891 | -10/Mines | Learned 2 Materials zone layouts 2218 | -10/Mines | Discovered new exit (range 6) 2349 | -10/Mines | Deemed a non-threat by the Exiles lab entrance 2351 | -10/Mines | Discovered new exit (range 5) 2682 | -10/Mines | Discovered new exit (range 9) 2690 | -10/Mines | Found a damaged Exp. Sensor Array with a note attached 2694 | -10/Mines | Found Prototype Device 2976 | -10/Mines | Entered Exiles 3004 | -10/Exiles | Discovered new exit (range 15) 3023 | -10/Exiles | Met 8R-AWN 3047 | -10/Exiles | Met EX-HEX 3108 | -10/Exiles | Met EX-DEC 3223 | -10/Exiles | Identified Exp. Sensor Array 3311 | -10/Exiles | Discovered new exit (range 14) 3331 | -10/Exiles | Entered Mines 3373 | -9/Mines | Discovered new exit (range 11) 4313 | -9/Mines | Assisted by bots powering up and referring to "LRC-V3" 4534 | -9/Mines | Found a hidden stash of uninstalled traps 4555 | -9/Mines | Discovered new exit (range 7) 5176 | -9/Mines | Entered Materials 5176 | -8/Materials | Accompanied by 2 allies 5176 | -8/Materials | Evolved 4 slots: Propulsion x1, Utility x2, Weapon x1 5177 | -8/Materials | Identified exit to Storage 5590 | -8/Materials | Destroyed 8 combat bots 5592 | -8/Materials | Lost 5 parts (1n2u2w) 5611 | -8/Materials | Identified exit to Garrison 5778 | -8/Materials | Garrison activated, responded to threat 5886 | -8/Materials | Destroyed 8 combat bots 5888 | -8/Materials | Lost 5 parts (1p1n1u2w) 6151 | -8/Materials | Entered Garrison 6193 | -8/Garrison | Triggered checkpoint 6194 | -8/Garrison | Core integrity fell below 50% 6231 | -8/Garrison | Build established: Gunner 6323 | -8/Garrison | Triggered checkpoint 6519 | -8/Garrison | Triggered checkpoint 6677 | -8/Garrison | Discovered new exit (range 9) 6680 | -8/Garrison | Build established: Scavenger-Gunner 6876 | -8/Garrison | Triggered checkpoint 6926 | -8/Garrison | Triggered checkpoint 7057 | -8/Garrison | Discovered new exit (range 14) 7445 | -8/Garrison | Build established: Scavenger-Mutant 7535 | -8/Garrison | Triggered checkpoint 7565 | -8/Garrison | Triggered checkpoint 7615 | -8/Garrison | Triggered checkpoint 7655 | -8/Garrison | Core integrity fell below 20% 7695 | -8/Garrison | Lost 3 parts (1n2w) 8227 | -8/Garrison | Entered Materials 8273 | -8/Materials | Build established: Tank 8648 | -8/Materials | Repaired Faulty Exp. Sensor Array 8864 | -8/Materials | Build established: Scavenger-Skirmisher 9089 | -8/Materials | Destroyed by Y-45 Defender with Beam Rifle Last Messages --------------- 09082_ Y-45 Defender suffers critical hit (Destroy). 09082_ Destroyed Hvy. Assault Rifle. 09083_ R-06 Scavenger inserts Sml. Storage Unit into recycling unit. 09085_ HV Slug penetrates Y-45 Defender. 09085_ Y-45 Defender suffers critical hit (Destroy). 09085_ HV Slug penetrates Wall. 09085_ HV Slug penetrates Y-45 Defender. 09085_ HV Slug penetrates Wall. 09085_ HV Slug penetrates Y-45 Defender. 09085_ HV Slug penetrates Wall. 09086_ R-06 Scavenger inserts Sml. Matter Pod into recycling unit. 09087_ Recycling unit begins recycling process. 09089_ HV Slug penetrates Y-45 Defender. 09089_ Y-45 Defender suffers critical hit (Destroy). 09089_ Destroyed Lgt. Treads. 09089_ HV Slug penetrates Wall. 09089_ HV Slug penetrates Y-45 Defender. 09089_ Y-45 Defender suffers critical hit (Destroy). 09089_ Destroyed Heat Sink. 09089_ HV Slug penetrates Wall. Map ----- +----------------------------------------------------+ | ?????????????????????????????????????????????????? | | ?????????????????????????????????????????????????? | | ?????????????????????????????????????????????????? | | ?????????????????????????????????????????????????? | | ?????????????????????????????????????????????????? | | ?????????????????????????????????????????????????? | | ?????????????????????????????????????????????????? | | ?????????????????????????????????????????????????? | | ?????????????????????????????????????????????????? | | ?????????????????????????????????????????????????? | | ?????????????????????????????????????????????????? | | ?????????????????????????????????????????????????? | | #######?????????????????????k????????????????????? | | ] #??????????????????????????????????????????? | | #??????????????????????????????????????????? | | """ #??????????????????????????????????????????? | | """ #??????????????#####???????????????????????? | | """ #??????????????# "?? #??????????????????? | | """ #??????????????# "Y" #??????????????????? | | """ /!#??????????????# #??????????????????? | | !##########?????# [ r #??????????????????? | | # #?????# #??????????????????? | | ##+#### #?????# """ #??????????????????? | | #?# #?????# """ ##?????????????????? | | # #?# #?????# """ #???u?????????????? | | # #?# #?????# @ #??????????????????? | | # #?# ###########Y######## #??????????? | | # #?# ## #??????????? | | # #?# ## ????????? | | # #?# ## ????????? | | # ######+###### !! a ?????????? | | # #???# u k! #######?????????? | | # !=#???# ^^#### #???????????????? | | # %""" #???# ##?# #???????????????? | | # """ ! %##### #??# !!] #???????????????? | | # """ #??# !]] #???????????????? | | # """ ! * #??# ! !] ??????????????? | | # !%[ #??# +?????????????? | | # =#########??# #?????????????? | | # % #??????????##### ##### #?????????????? | | + #??????????????? #???????????????????? | | # #??????????????? #???????????????????? | | # #????????!#??????????????????????????? | | # """ #????? #??????????????????????????? | | R" #### ##?????????????????????????? | | """ ????????????????????????? | | ????????????????????????? | | %] ????????????????????????? | | ###+##"#########????????????????????????????? | | # %##[ ^ #?????????????????????????????????? | +----------------------------------------------------+ Best States ------------- Heat Dissipation 59 Energy Generation 14 Energy Capacity 265 Matter Stores 300 Matter Capacity 300 Sight Range 16 Robot Scan Range 15 Terrain Scan Range 16 Terrain Scan Density 10 Armor Coverage 375 Resistance: EM 15 Core Shielding 20 Evasion (%) 55 Targeting Accuracy 6 Recoil Reduction 3 Item Schematics ----------------- None Robot Schematics ------------------ None Fabricated ------------ Nothing Alien Tech Used ----------------- None Achievements -------------- None Challenges ------------ None Game ------ Seed HypercooledArmoredBoomstick Manual? 0 Play Time 00:42:30 Cumulative 152.0 hours Start 2024.09.23 @ 01:07:33 End 2024.09.23 @ 01:52:13 Sessions 1 Manual Loads 0 Difficulty Rogue Special Mode None Game No. 201 Rogue 201 Adventurer 0 Explorer 0 Win Type - Total 1 Types 1/0/0/0/0/0/0/0/0 Lore% 50 Gallery% 61 Achievement% 49 Wizard Run 0 Options --------- Layout 0 ASCII 0 Keyboard 0 Movement Mouse Keybinds 1 Fullscreen 2 Font 18/TerminusBold Map View 76x50 Zoom Use 0% Tactical HUD 1 Map Filters NONE Filters NONE Steam 0 RUN: d24c598b-20b5-4526-89a6-58ff8f62023c